fUST/lending_fUST_20250601
["ID","MTS","AMOUNT","RATE_DAILY","PERIOD"]
[363495427,1748742639030,-430.0,0.00018669,2]
[363495429,1748742639039,-430.0,0.00018669,2]
[363495431,1748742639049,-430.0,0.00018669,2]
[363495433,1748742639058,-430.0,0.00018669,2]
[363495435,1748742639068,-430.0,0.00018669,2]
[363495437,1748742639078,-509.22,0.00018669,2]
[363495439,1748742639088,-430.0,0.00018669,2]
[363495441,1748742639097,-430.0,0.00018669,2]
[363495443,1748742639106,-430.0,0.00018669,2]
[363495445,1748742639116,-472.31975484,0.00018669,2]
[363495447,1748742639125,-476.65448417,0.00018669,2]
[363495449,1748742639135,-430.0,0.00018669,2]
[363495451,1748742639144,-430.0,0.00018669,2]
[363495453,1748742639154,-430.0,0.00018669,2]
[363495455,1748742639164,-430.0,0.00018669,2]
[363495457,1748742639173,-430.0,0.00018669,2]
[363495459,1748742639183,-430.0,0.00018669,2]
[363495461,1748742639194,-481.2190372,0.00018669,2]
[363495463,1748742639204,-430.0,0.00018669,2]
[363495465,1748742639214,-430.0,0.00018669,2]
[363495467,1748742639224,-430.0,0.00018669,2]
[363495469,1748742639235,-430.0,0.00018669,2]
[363495471,1748742639244,-430.0,0.00018669,2]
[363495473,1748742639253,-430.0,0.00018669,2]
[363495475,1748742639262,-268.23077591,0.00018669,2]
[363495477,1748742639272,-430.0,0.00018669,2]
[363495479,1748742639282,-430.0,0.00018669,2]
[363495481,1748742639292,-430.0,0.00018669,2]
[363495483,1748742639301,-423.40622762,0.00018669,2]
[363495485,1748742639311,-430.0,0.00018669,2]
[363495487,1748742639320,-473.71564651,0.00018669,2]
[363495489,1748742639329,-662.67,0.00018669,2]
[363495491,1748742639339,-430.0,0.00018669,2]
[363495493,1748742639348,-435.74696005,0.00018669,2]
[363495495,1748742639357,-430.0,0.00018669,2]
[363495497,1748742639367,-357.40017513,0.00018669,2]
[363495499,1748742639376,-438.17,0.00018669,2]
[363495501,1748742639386,-445.15169908,0.00018669,2]
[363495503,1748742639396,-430.0,0.00018669,2]
[363495505,1748742639405,-430.0,0.00018669,2]
[363495507,1748742639416,-430.0,0.00018669,2]
[363495509,1748742639425,-430.0,0.00018669,2]
[363495511,1748742639434,-430.0,0.0001867,2]
[363495513,1748742639443,-435.93408426,0.0001867,2]
[363495515,1748742639452,-444.73064392,0.0001867,2]
[363495517,1748742639461,-449.55413252,0.0001867,2]
[363495519,1748742639471,-430.0,0.0001867,2]
[363495521,1748742639480,-430.0,0.0001867,2]
[363495523,1748742639489,-430.0,0.0001867,2]
[363495525,1748742639499,-441.11749078,0.0001867,2]
[363495527,1748742639513,-454.38199598,0.0001867,2]
[363495529,1748742639522,-430.0,0.0001867,2]
[363495531,1748742639533,-430.0,0.0001867,2]
[363495533,1748742639542,-430.0,0.0001867,2]
[363495535,1748742639552,-430.0,0.0001867,2]
[363495537,1748742639561,-438.70831734,0.0001867,2]
[363495539,1748742639571,-430.0,0.0001867,2]
[363495541,1748742639580,-430.0,0.0001867,2]
[363495543,1748742639590,-430.0,0.0001867,2]
[363495545,1748742639600,-436.01369669,0.0001867,2]
[363495547,1748742639610,-430.0,0.0001867,2]
[363495549,1748742639619,-473.63753092,0.0001867,2]
[363495551,1748742639628,-440.16378127,0.0001867,2]
[363495553,1748742639639,-430.0,0.0001867,2]
[363495556,1748742639648,-436.95411518,0.0001867,2]
[363495558,1748742639658,-436.98902445,0.0001867,2]
[363495560,1748742639667,-436.10138319,0.0001867,2]
[363495562,1748742639675,-500.0,0.0001867,2]
[363495564,1748742639684,-430.0,0.0001867,2]
[363495566,1748742639693,-438.44127338,0.0001867,2]
[363495568,1748742639701,-430.0,0.0001867,2]
[363495570,1748742639710,-437.13191541,0.0001867,2]
[363495572,1748742639719,-274.78236003,0.0001867,2]
[363495574,1748742639728,-430.0,0.0001867,2]
[363495576,1748742639738,-430.0,0.0001867,2]
[363495578,1748742639747,-430.0,0.0001867,2]
[363495580,1748742639756,-430.0,0.0001867,2]
[363495582,1748742639765,-430.0,0.0001867,2]
[363495583,1748742639774,-442.2848589,0.0001867,2]
[363495586,1748742639784,-435.45802455,0.0001867,2]
[363495588,1748742639793,-430.0,0.0001867,2]
[363495590,1748742639802,-436.10618459,0.0001867,2]
[363495592,1748742639811,-437.9122608,0.0001867,2]
[363495594,1748742639822,-430.0,0.0001867,2]
[363495596,1748742639831,-430.0,0.0001867,2]
[363495598,1748742639841,-433.45076996,0.0001867,2]
[363495600,1748742639851,-406.17254476,0.0001867,2]
[363495602,1748742639861,-430.0,0.0001867,2]
[363495604,1748742639871,-430.0,0.0001867,2]
[363495606,1748742639882,-430.0,0.0001867,2]
[363495608,1748742639891,-430.0,0.0001867,2]
[363495610,1748742639900,-430.0,0.0001867,2]
[363495612,1748742639910,-430.0,0.0001867,2]
[363495614,1748742639919,-1722.08,0.0001867,2]
[363495616,1748742639929,-430.0,0.0001867,2]
[363495618,1748742639938,-430.0,0.0001867,2]
[363495620,1748742639948,-430.0,0.0001867,2]
[363495622,1748742639957,-430.0,0.0001867,2]
[363495624,1748742639966,-430.0,0.0001867,2]
[363495626,1748742639975,-500.47,0.0001867,2]
[363495628,1748742639984,-430.0,0.0001867,2]
[363495630,1748742639992,-430.0,0.0001867,2]
[363495632,1748742640002,-434.27027235,0.0001867,2]
[363495634,1748742640010,-430.0,0.0001867,2]
[363495636,1748742640019,-430.0,0.0001867,2]
[363495638,1748742640028,-500.0,0.0001867,2]
[363495640,1748742640037,-430.0,0.0001867,2]
[363495642,1748742640048,-436.5246249,0.0001867,2]
[363495644,1748742640057,-430.0,0.0001867,2]
[363495647,1748742640066,-430.0,0.0001867,2]
[363495650,1748742640076,-430.0,0.0001867,2]
[363495653,1748742640085,-651.51,0.0001867,2]
[363495655,1748742640095,-430.0,0.0001867,2]
[363495657,1748742640104,-430.0,0.0001867,2]
[363495659,1748742640114,-430.0,0.0001867,2]
[363495662,1748742640123,-430.0,0.0001867,2]
[363495666,1748742640132,-507.56,0.0001867,2]
[363495668,1748742640141,-430.0,0.0001867,2]
[363495670,1748742640151,-430.0,0.0001867,2]
[363495672,1748742640160,-430.0,0.0001867,2]
[363495674,1748742640169,-430.0,0.0001867,2]
[363495677,1748742640178,-430.0,0.0001867,2]
[363495679,1748742640187,-545.57,0.0001867,2]
[363495682,1748742640198,-430.0,0.0001867,2]
[363495684,1748742640208,-453.5,0.0001867,2]
[363495685,1748742640217,-430.0,0.0001867,2]
[363495688,1748742640228,-430.0,0.0001867,2]
[363495690,1748742640237,-430.0,0.0001867,2]
[363495692,1748742640247,-430.0,0.0001867,2]
[363495694,1748742640257,-663.03,0.0001867,2]
[363495696,1748742640266,-430.0,0.0001867,2]
[363495698,1748742640276,-430.0,0.0001867,2]
[363495700,1748742640286,-1912.78,0.0001867,2]
[363495702,1748742640295,-208.92961296,0.00018671,2]
[363495704,1748742640306,-430.0,0.00018671,2]
[363495706,1748742640315,-430.0,0.00018671,2]
[363495708,1748742640325,-731.86,0.00018671,2]
[363495710,1748742640334,-430.0,0.00018671,2]
[363495712,1748742640343,-342.12475567,0.00018671,2]
[363495714,1748742640353,-430.0,0.00018671,2]
[363495716,1748742640363,-430.0,0.00018671,2]
[363495718,1748742640372,-437.60808724,0.00018672,2]
[363495720,1748742640381,-456.76562574,0.00018672,2]
[363495722,1748742640391,-430.0,0.00018672,2]
[363495724,1748742640400,-430.0,0.00018672,2]
[363495726,1748742640409,-487.16130312,0.00018672,2]
[363495728,1748742640418,-409.64684622,0.00018672,2]
[363495730,1748742640426,-430.0,0.00018672,2]
[363495732,1748742640434,-430.0,0.00018672,2]
[363495734,1748742640442,-359.17081692,0.00018672,2]
[363495736,1748742640451,-430.0,0.00018672,2]
[363495751,1748742640586,-430.0,0.00018672,2]
[363495753,1748742640596,-446.60602996,0.00018672,2]
[363495755,1748742640607,-430.0,0.00018672,2]
[363495757,1748742640616,-443.66590742,0.00018672,2]
[363495759,1748742640625,-430.0,0.00018672,2]
[363495761,1748742640635,-430.0,0.00018672,2]
[363495763,1748742640645,-434.83525503,0.00018672,2]
[363495765,1748742640654,-430.0,0.00018672,2]
[363495767,1748742640664,-151.0,0.00018672,2]
[363495769,1748742640673,-968.806867,0.00018672,2]
[363495771,1748742640683,-968.806867,0.00018672,2]
[363495773,1748742640692,-151.0,0.00018752,2]
[363495775,1748742640702,-151.0,0.00018752,2]
[363495777,1748742640711,-151.0,0.00018752,2]
[363495779,1748742640723,-151.0,0.00018752,2]
[363495781,1748742640733,-1005.89,0.000188,2]
[363495783,1748742640742,-1521.45,0.00018801,2]
[363495785,1748742640750,-151.0,0.000189,2]
[363495787,1748742640760,-181.002883,0.000189,2]
[363495789,1748742640769,-1250.58810731,0.000189,2]
[363495791,1748742640778,-1010.46320827,0.00018921,2]
[363495793,1748742640787,-2307.53859888,0.00018934,2]
[363495795,1748742640797,-430.0,0.00018942,2]
[363495797,1748742640807,-430.0,0.00018942,2]
[363495799,1748742640816,-450.14959396,0.00018942,2]
[363495801,1748742640825,-836.9,0.00018942,2]
[363495803,1748742640834,-1108.1,0.00018942,2]
[363495805,1748742640844,-430.0,0.00018942,2]
[363495807,1748742640853,-1003.72,0.00018942,2]
[363495809,1748742640862,-430.0,0.00018942,2]
[363495811,1748742640872,-1295.92,0.00018942,2]
[363495813,1748742640882,-430.0,0.00018942,2]
[363495815,1748742640891,-430.0,0.00018942,2]
[363495817,1748742640900,-430.0,0.00018943,2]
[363495819,1748742640910,-430.0,0.00018943,2]
[363495821,1748742640919,-461.03437924,0.00018943,2]
[363495824,1748742640928,-444.30581469,0.00018943,2]
[363495828,1748742640936,-430.0,0.00018943,2]
[363495831,1748742640946,-430.0,0.00018943,2]
[363495833,1748742640955,-774.94,0.00018943,2]
[363495835,1748742640963,-430.0,0.00018943,2]
[363495837,1748742640972,-430.0,0.00018943,2]
[363495839,1748742640981,-348.99051362,0.00018943,2]
[363495841,1748742640989,-270.95429878,0.00018943,2]
[363495843,1748742640999,-430.0,0.00018943,2]
[363495845,1748742641007,-430.0,0.00018943,2]
[363495847,1748742641016,-430.0,0.00018943,2]
[363495849,1748742641025,-430.0,0.00018943,2]
[363495851,1748742641034,-430.0,0.00018943,2]
[363495853,1748742641043,-509.22,0.00018943,2]
[363495855,1748742641052,-430.0,0.00018943,2]
[363495858,1748742641062,-178.30136269,0.00018943,2]
[363495859,1748742641071,-434.99822387,0.00018943,2]
[363495861,1748742641080,-438.58803234,0.00018943,2]
[363495863,1748742641090,-430.0,0.00018943,2]
[363495865,1748742641099,-430.0,0.00018943,2]
[363495868,1748742641109,-560.45159261,0.00018943,2]
[363495870,1748742641119,-430.0,0.00018943,2]
[363495872,1748742641128,-440.02131201,0.00018943,2]
[363495874,1748742641138,-430.0,0.00018943,2]
[363495876,1748742641147,-430.0,0.00018943,2]
[363495878,1748742641157,-430.0,0.00018943,2]
[363495880,1748742641166,-430.0,0.00018943,2]
[363495882,1748742641176,-438.23200574,0.00018943,2]
[363495884,1748742641185,-438.20530013,0.00018943,2]
[363495886,1748742641195,-430.0,0.00018943,2]
[363495888,1748742641205,-430.0,0.00018943,2]
[363495890,1748742641215,-430.0,0.00018943,2]
[363495892,1748742641223,-430.0,0.00018943,2]
[363495894,1748742641233,-662.67,0.00018943,2]
[363495896,1748742641242,-435.983117,0.00018943,2]
[363495898,1748742641252,-430.0,0.00018943,2]
[363495900,1748742641262,-438.17,0.00018943,2]
[363495901,1748742641271,-430.0,0.00018943,2]
[363495902,1748742641281,-430.0,0.00018943,2]
[363495903,1748742641291,-430.0,0.00018943,2]
[363495904,1748742641300,-430.0,0.00018943,2]
[363495905,1748742641310,-470.41944304,0.00018944,2]
[363495906,1748742641319,-430.0,0.00018944,2]
[363495907,1748742641329,-430.0,0.00018944,2]
[363495908,1748742641338,-447.79739094,0.00018944,2]
[363495909,1748742641348,-352.18919709,0.00018944,2]
[363495910,1748742641358,-446.39600592,0.00018944,2]
[363495911,1748742641367,-430.0,0.00018944,2]
[363495912,1748742641377,-430.0,0.00018944,2]
[363495913,1748742641386,-430.0,0.00018944,2]
[363495914,1748742641396,-430.0,0.00018944,2]
[363495915,1748742641407,-440.04325517,0.00018944,2]
[363495916,1748742641415,-383.61316749,0.00018944,2]
[363495917,1748742641425,-343.76986465,0.00018944,2]
[363495918,1748742641434,-500.0,0.00018944,2]
[363495919,1748742641444,-430.0,0.00018944,2]
[363495920,1748742641453,-430.0,0.00018944,2]
[363495921,1748742641462,-430.0,0.00018944,2]
[363495922,1748742641472,-437.11612023,0.00018944,2]
[363495924,1748742641482,-439.39772576,0.00018944,2]
[363495926,1748742641491,-430.0,0.00018944,2]
[363495928,1748742641501,-430.0,0.00018944,2]
[363495930,1748742641514,-430.0,0.00018944,2]
[363495932,1748742641523,-151.0,0.00018944,2]
[363495934,1748742641532,-430.0,0.00018944,2]
[363495936,1748742641543,-430.0,0.00018944,2]
[363495938,1748742641552,-542.2617709,0.00018944,2]
[363495940,1748742641561,-434.8338154,0.00018944,2]
[363495942,1748742641570,-430.0,0.00018944,2]
[363495944,1748742641579,-430.0,0.00018944,2]
[363495946,1748742641588,-306.79106692,0.00018944,2]
[363495948,1748742641597,-430.0,0.00018944,2]
[363495950,1748742641607,-1722.08,0.00018944,2]
[363495952,1748742641616,-430.0,0.00018944,2]
[363495954,1748742641626,-430.0,0.00018944,2]
[363495956,1748742641635,-430.0,0.00018944,2]
[363495958,1748742641645,-450.15222893,0.00018944,2]
[363495960,1748742641653,-430.0,0.00018944,2]
[363495962,1748742641663,-500.47,0.00018944,2]
[363495964,1748742641672,-430.0,0.00018944,2]
[363495966,1748742641681,-430.0,0.00018944,2]
[363495968,1748742641691,-430.0,0.00018944,2]
[363495970,1748742641701,-430.0,0.00018944,2]
[363495972,1748742641710,-500.0,0.00018944,2]
[363495974,1748742641720,-430.0,0.00018944,2]
[363495976,1748742641730,-430.0,0.00018944,2]
[363495978,1748742641741,-430.0,0.00018944,2]
[363495980,1748742641749,-430.0,0.00018944,2]
[363495982,1748742641760,-651.51,0.00018944,2]
[363495984,1748742641769,-430.0,0.00018944,2]
[363495986,1748742641778,-430.0,0.00018944,2]
[363495988,1748742641788,-430.0,0.00018944,2]
[363495990,1748742641797,-430.0,0.00018944,2]
[363495992,1748742641807,-507.56,0.00018944,2]
[363495994,1748742641816,-430.0,0.00018944,2]
[363495996,1748742641826,-464.3297887,0.00018944,2]
[363495998,1748742641835,-430.0,0.00018944,2]
[363496000,1748742641845,-430.0,0.00018944,2]
[363496002,1748742641854,-430.0,0.00018944,2]
[363496004,1748742641863,-545.57,0.00018944,2]
[363496006,1748742641872,-430.0,0.00018944,2]
[363496008,1748742641880,-453.5,0.00018944,2]
[363496010,1748742641888,-430.0,0.00018944,2]
[363496012,1748742641897,-430.0,0.00018944,2]
[363496014,1748742641906,-430.0,0.00018944,2]
[363496016,1748742641915,-430.0,0.00018944,2]
[363496018,1748742641925,-663.03,0.00018944,2]
[363496020,1748742641934,-430.0,0.00018944,2]
[363496023,1748742641944,-430.0,0.00018944,2]
[363496025,1748742641954,-1912.78,0.00018944,2]
[363496027,1748742641963,-430.0,0.00018945,2]
[363496029,1748742641971,-430.0,0.00018945,2]
[363496031,1748742641981,-731.86,0.00018945,2]
[363496033,1748742641990,-438.88069575,0.00018945,2]
[363496035,1748742641999,-430.0,0.00018945,2]
[363496036,1748742642008,-430.0,0.00018945,2]
[363496039,1748742642018,-497.905898,0.00018946,2]
[363496040,1748742642027,-430.0,0.00018946,2]
[363496043,1748742642037,-430.0,0.00018946,2]
[363496045,1748742642047,-430.0,0.00018946,2]
[363496047,1748742642056,-558.07647073,0.00018946,2]
[363496049,1748742642065,-430.0,0.00018946,2]
[363496051,1748742642074,-430.0,0.00018946,2]
[363496053,1748742642083,-152.17912101,0.00018946,2]
[363496055,1748742642094,-500.4602774,0.00018946,2]
[363496057,1748742642103,-430.0,0.00018946,2]
[363496059,1748742642112,-1250.58810726,0.00019107,2]
[363496061,1748742642121,-500.0,0.00019178,2]
[363496063,1748742642130,-500.0,0.00019178,2]
[363496065,1748742642139,-362.02475047,0.00019178,2]
[363496067,1748742642148,-500.0,0.00019178,2]
[363496069,1748742642157,-500.0,0.00019178,2]
[363496071,1748742642166,-500.0,0.00019178,2]
[363496073,1748742642175,-500.0,0.00019178,2]
[363496075,1748742642184,-500.0,0.00019178,2]
[363496077,1748742642193,-500.0,0.00019178,2]
[363496078,1748742642202,-430.0,0.00019178,2]
[363496081,1748742642211,-430.0,0.00019178,2]
[363496083,1748742642220,-430.0,0.00019178,2]
[363496085,1748742642229,-164.361843,0.00019178,2]
[363496087,1748742642238,-430.0,0.00019216,2]
[363496089,1748742642247,-407.46595788,0.00019216,2]
[363496091,1748742642256,-430.0,0.00019216,2]
[363496093,1748742642265,-430.0,0.00019216,2]
[363496095,1748742642275,-430.0,0.00019216,2]
[363496097,1748742642284,-151.0,0.00019216,2]
[363496099,1748742642294,-452.01464146,0.00019216,2]
[363496102,1748742642303,-836.9,0.00019216,2]
[363496104,1748742642312,-1108.1,0.00019216,2]
[363496106,1748742642321,-430.0,0.00019216,2]
[363496108,1748742642330,-430.0,0.00019216,2]
[363496110,1748742642340,-434.72942855,0.00019216,2]
[363496112,1748742642348,-430.0,0.00019216,2]
[363496114,1748742642357,-1003.72,0.00019216,2]
[363496116,1748742642366,-430.0,0.00019216,2]
[363496118,1748742642376,-1295.92,0.00019216,2]
[363496120,1748742642384,-430.0,0.00019216,2]
[363496122,1748742642394,-430.0,0.00019217,2]
[363496124,1748742642403,-774.94,0.00019217,2]
[363496126,1748742642411,-430.0,0.00019217,2]
[363496128,1748742642421,-430.0,0.00019217,2]
[363496130,1748742642430,-430.0,0.00019217,2]
[363496132,1748742642439,-430.0,0.00019217,2]
[363496134,1748742642449,-430.0,0.00019217,2]
[363496136,1748742642458,-430.0,0.00019217,2]
[363496138,1748742642467,-509.22,0.00019217,2]
[363496140,1748742642476,-430.0,0.00019217,2]
[363496142,1748742642486,-465.63170653,0.00019217,2]
[363496144,1748742642495,-430.0,0.00019217,2]
[363496146,1748742642505,-430.0,0.00019217,2]
[363496148,1748742642517,-436.66836829,0.00019217,2]
[363496149,1748742642526,-430.0,0.00019217,2]
[363496151,1748742642536,-430.0,0.00019217,2]
[363496154,1748742642548,-430.0,0.00019217,2]
[363496156,1748742642557,-430.0,0.00019217,2]
[363496158,1748742642566,-475.59789162,0.00019217,2]
[363496160,1748742642576,-430.0,0.00019217,2]
[363496162,1748742642585,-430.0,0.00019217,2]
[363496164,1748742642595,-662.67,0.00019217,2]
[363496166,1748742642606,-438.17,0.00019217,2]
[363496168,1748742642615,-968.806867,0.00019217,2]
[363496170,1748742642625,-968.806867,0.00019217,2]
[363496172,1748742642634,-430.0,0.00019217,2]
[363496174,1748742642643,-430.0,0.00019217,2]
[363496176,1748742642652,-430.0,0.00019218,2]
[363496178,1748742642661,-443.94720651,0.00019218,2]
[363496180,1748742642671,-430.0,0.00019218,2]
[363496182,1748742642680,-430.0,0.00019218,2]
[363496184,1748742642689,-430.0,0.00019218,2]
[363496186,1748742642700,-430.0,0.00019218,2]
[363496188,1748742642709,-506.63457666,0.00019218,2]
[363496190,1748742642718,-439.25404557,0.00019218,2]
[363496192,1748742642727,-430.0,0.00019218,2]
[363496194,1748742642737,-457.54123199,0.00019218,2]
[363496196,1748742642746,-430.0,0.00019218,2]
[363496198,1748742642755,-446.96111193,0.00019218,2]
[363496200,1748742642764,-430.0,0.00019218,2]
[363496202,1748742642774,-527.14944358,0.00019218,2]
[363496204,1748742642783,-430.0,0.00019218,2]
[363496206,1748742642792,-436.73683971,0.00019218,2]
[363496208,1748742642801,-151.0,0.00019218,2]
[363496210,1748742642811,-151.0,0.00019218,2]
[363496212,1748742642820,-430.0,0.00019218,2]
[363496214,1748742642830,-430.0,0.00019218,2]
[363496216,1748742642838,-1722.08,0.00019218,2]
[363496218,1748742642847,-430.0,0.00019218,2]
[363496220,1748742642856,-430.0,0.00019218,2]
[363496222,1748742642865,-440.5226478,0.00019218,2]
[363496224,1748742642875,-430.0,0.00019218,2]
[363496226,1748742642884,-500.47,0.00019218,2]
[363496228,1748742642893,-430.0,0.00019218,2]
[363496231,1748742642901,-430.0,0.00019218,2]
[363496234,1748742642910,-430.0,0.00019218,2]
[363496236,1748742642919,-440.53136405,0.00019218,2]
[363496239,1748742642928,-500.0,0.00019218,2]
[363496242,1748742642937,-430.0,0.00019218,2]
[363496244,1748742642947,-430.0,0.00019218,2]
[363496247,1748742642956,-430.0,0.00019218,2]
[363496250,1748742642965,-430.0,0.00019218,2]
[363496253,1748742642974,-651.51,0.00019218,2]
[363496256,1748742642982,-430.0,0.00019218,2]
[363496257,1748742642990,-430.0,0.00019218,2]
[363496261,1748742643001,-151.0,0.00019218,2]
[363496266,1748742643010,-151.0,0.00019218,2]
[363496269,1748742643020,-430.0,0.00019218,2]
[363496273,1748742643029,-448.21302618,0.00019218,2]
[363496275,1748742643038,-507.56,0.00019218,2]
[363496278,1748742643047,-430.0,0.00019218,2]
[363496280,1748742643057,-430.0,0.00019218,2]
[363496283,1748742643066,-430.0,0.00019218,2]
[363496285,1748742643075,-430.0,0.00019218,2]
[363496287,1748742643085,-545.57,0.00019218,2]
[363496289,1748742643094,-447.78292531,0.00019218,2]
[363496291,1748742643105,-151.0,0.00019218,2]
[363496293,1748742643114,-453.5,0.00019218,2]
[363496296,1748742643123,-430.0,0.00019218,2]
[363496299,1748742643132,-447.17495757,0.00019218,2]
[363496302,1748742643141,-430.0,0.00019218,2]
[363496305,1748742643150,-430.0,0.00019218,2]
[363496307,1748742643159,-663.03,0.00019218,2]
[363496309,1748742643169,-430.0,0.00019218,2]
[363496312,1748742643178,-430.0,0.00019218,2]
[363496315,1748742643187,-430.0,0.00019218,2]
[363496317,1748742643197,-1912.78,0.00019218,2]
[363496319,1748742643207,-151.0,0.00019219,2]
[363496321,1748742643216,-444.43014427,0.00019219,2]
[363496323,1748742643226,-430.0,0.00019219,2]
[363496325,1748742643235,-731.86,0.00019219,2]
[363496339,1748742643358,-430.0,0.00019219,2]
[363496341,1748742643369,-430.0,0.00019219,2]
[363496343,1748742643378,-430.0,0.0001922,2]
[363496345,1748742643388,-430.0,0.0001922,2]
[363496348,1748742643398,-271.59463918,0.0001922,2]
[363496350,1748742643407,-430.0,0.0001922,2]
[363496352,1748742643416,-430.0,0.0001922,2]
[363496354,1748742643425,-151.0,0.0001922,2]
[363496356,1748742643434,-430.0,0.0001922,2]
[363496358,1748742643443,-151.0,0.0001922,2]
[363496359,1748742643453,-432.273362,0.0001922,2]
[363496361,1748742643462,-432.273362,0.0001922,2]
[363496363,1748742643472,-151.556847,0.0001922,2]
[363496365,1748742643481,-183.705298,0.0001922,2]
[363496367,1748742643490,-183.705298,0.0001922,2]
[363496369,1748742643500,-160.0,0.00019288,3]
[363496371,1748742643513,-1250.58810726,0.00019314,2]
[363496373,1748742643522,-151.0,0.00019314,2]
[363496375,1748742643531,-151.0,0.00019314,2]
[363496377,1748742643540,-151.0,0.00019314,2]
[363496379,1748742643549,-151.0,0.00019314,2]
[363496382,1748742643559,-151.0,0.00019314,2]
[363496384,1748742643568,-151.62115,0.00019314,2]
[363496387,1748742643577,-151.62115,0.00019314,2]
[363496390,1748742643586,-151.0,0.00019314,2]
[363496394,1748742643594,-440.35418715,0.0001949,2]
[363496398,1748742643603,-430.0,0.0001949,2]
[363496400,1748742643612,-443.45128947,0.0001949,2]
[363496404,1748742643621,-450.3660026,0.0001949,2]
[363496407,1748742643630,-836.9,0.0001949,2]
[363496409,1748742643639,-1108.1,0.0001949,2]
[363496411,1748742643650,-448.76827934,0.0001949,2]
[363496413,1748742643660,-442.76088732,0.0001949,2]
[363496415,1748742643669,-501.22490982,0.0001949,2]
[363496417,1748742643678,-1003.72,0.0001949,2]
[363496419,1748742643688,-449.46620062,0.0001949,2]
[363496421,1748742643698,-1295.92,0.0001949,2]
[363496424,1748742643707,-430.0,0.0001949,2]
[363496426,1748742643716,-430.0,0.00019491,2]
[363496427,1748742643726,-774.94,0.00019491,2]
[363496430,1748742643735,-430.0,0.00019491,2]
[363496432,1748742643745,-430.0,0.00019491,2]
[363496434,1748742643755,-455.77938826,0.00019491,2]
[363496436,1748742643764,-452.50481213,0.00019491,2]
[363496438,1748742643774,-445.39267255,0.00019491,2]
[363496440,1748742643784,-430.0,0.00019491,2]
[363496442,1748742643793,-509.22,0.00019491,2]
[363496444,1748742643803,-430.0,0.00019491,2]
[363496446,1748742643813,-430.0,0.00019491,2]
[363496448,1748742643823,-430.0,0.00019491,2]
[363496450,1748742643832,-430.0,0.00019491,2]
[363496452,1748742643842,-441.96506848,0.00019491,2]
[363496454,1748742643852,-445.07420991,0.00019491,2]
[363496456,1748742643861,-430.0,0.00019491,2]
[363496458,1748742643871,-430.0,0.00019491,2]
[363496460,1748742643881,-430.0,0.00019491,2]
[363496462,1748742643891,-662.67,0.00019491,2]
[363496464,1748742643900,-438.17,0.00019491,2]
[363496466,1748742643910,-504.4405236,0.00019491,2]
[363496468,1748742643919,-430.0,0.00019491,2]
[363496470,1748742643929,-430.0,0.00019492,2]
[363496472,1748742643938,-430.0,0.00019492,2]
[363496474,1748742643948,-447.52431249,0.00019492,2]
[363496476,1748742643957,-444.76230826,0.00019492,2]
[363496478,1748742643967,-453.78129913,0.00019492,2]